fUST/lending_fUST_20251102
["ID","MTS","AMOUNT","RATE_DAILY","PERIOD"]
[392859085,1762074272151,756.36557266,0.00022453,8]
[392859086,1762074272275,756.36557266,0.00022678,8]
[392859087,1762074272324,458.26046025,0.00022902,10]
[392859089,1762074371856,2000.0,0.00023,14]
[392859091,1762074386993,2000.0,0.00023,14]
[392859092,1762074392875,1538.0,0.000232,14]
[392859174,1762074483273,210.99,0.00017882,2]
[392859176,1762074528758,1538.12897825,0.00022646,2]
[392859177,1762074528779,3675.02632355,0.00022646,2]
[392859178,1762074562330,233.00692326,0.00023261,2]
[392859187,1762074632291,-287.0,0.00023361,2]
[392859188,1762074632301,-685.23565611,0.00023361,2]
[392859189,1762074632310,-286.21764573,0.00023364,2]
[392859190,1762074632320,-287.0,0.00023373,2]
[392859191,1762074632329,-1246.55587047,0.00023398,2]
[392859192,1762074632337,-397.0,0.00023442,2]
[392859193,1762074632346,-1200.0,0.00023444,2]
[392859194,1762074632356,-3171.08613518,0.00023445,2]
[392859195,1762074632365,-1200.0,0.00023472,2]
[392859196,1762074632375,-492.33,0.00023473,2]
[392859197,1762074632384,-300.0,0.00023496,2]
[392859198,1762074632393,-500.0,0.00023497,2]
[392859199,1762074632402,-500.0,0.00023497,2]
[392859200,1762074632412,-484.75581655,0.00023497,2]
[392859201,1762074632421,-292.58476789,0.00023497,2]
[392859202,1762074632431,-500.0,0.00023497,2]
[392859203,1762074632441,-300.0,0.00023497,2]
[392859204,1762074632451,-300.0,0.00023497,2]
[392859205,1762074632466,-300.0,0.00023497,2]
[392859206,1762074632476,-45768.20908513,0.00023498,2]
[392859264,1762074640444,-1955.78716185,0.00023445,2]
[392859265,1762074640454,-4143.16047589,0.00023498,2]
[392859266,1762074640466,-88.63043898,0.00023498,2]
[392859267,1762074640476,-284.0,0.00023519,2]
[392859268,1762074640485,-631.32716479,0.00023534,2]
[392859270,1762074640495,-1035.88,0.00023535,3]
[392859272,1762074640504,-1068.95,0.00023535,3]
[392859274,1762074640514,-534.48,0.00023535,3]
[392859275,1762074640524,-267.24,0.00023535,3]
[392859276,1762074640533,-801.73,0.00023535,3]
[392859277,1762074640543,-500.0,0.00023541,2]
[392859278,1762074640552,-500.0,0.00023541,2]
[392859280,1762074640562,-392.02467346,0.00023541,2]
[392859282,1762074640572,-287.075,0.00023542,4]
[392859285,1762074640581,-341.0042814,0.00023543,2]
[392859287,1762074640590,-535.77354664,0.00023543,2]
[392859289,1762074640600,-500.0,0.00023543,2]
[392859291,1762074640609,-500.0,0.00023543,2]
[392859293,1762074640619,-500.0,0.00023543,2]
[392859295,1762074640628,-500.0,0.00023543,2]
[392859297,1762074640637,-500.0,0.00023543,2]
[392859299,1762074640647,-500.0,0.00023543,2]
[392859301,1762074640655,-155.931,0.00023544,2]
[392859303,1762074640665,-500.0,0.00023544,2]
[392859305,1762074640674,-500.0,0.00023544,2]
[392859307,1762074640683,-500.0,0.00023544,2]
[392859309,1762074640693,-500.0,0.00023544,2]
[392859310,1762074640702,-99.52387971,0.00023544,2]
[392859361,1762074643230,-400.47612029,0.00023544,2]
[392859362,1762074643243,-392.60566278,0.00023544,2]
[392859363,1762074643253,-1080.62860463,0.00023545,2]
[392859364,1762074646834,-1240.64151937,0.00023545,2]
[392859374,1762074660397,151.0,0.000224,7]
[392859375,1762074660674,151.0,0.000211,3]
[392859376,1762074665324,284.096609,0.00022745,2]
[392859377,1762074700508,150.0,0.000226,2]
[392859378,1762074702677,229.66,0.00023074,2]
[392859379,1762074711428,165.50786317,0.00022575,2]
[392859380,1762074713973,422.71925,0.00022566,2]
[392859381,1762074714472,177.0,0.00022907,2]
[392859382,1762074721966,177.0,0.00023079,2]
[392859386,1762074765703,150.0,0.0002259,2]
[392859387,1762074805516,410.23711402,0.00022575,2]
[392859389,1762074808000,174.80409546,0.00022566,2]
[392859390,1762074810133,314.64737182,0.00022566,2]
[392859391,1762074815350,558.81373236,0.00022566,2]
[392859392,1762074818376,158.3292384,0.00023335,2]
[392859393,1762074830469,150.0,0.00022428,2]
[392859394,1762074884246,579.63129228,0.00023345,2]
[392859396,1762074916797,151.0,0.00038013,60]
[392859397,1762074917412,156.587,0.00038013,60]
[392859398,1762074918030,162.380719,0.00038013,60]
[392859399,1762074918640,168.3888056,0.00038013,60]
[392859400,1762074919269,174.61919141,0.00038013,60]
[392859401,1762074919879,181.08010149,0.00038013,60]
[392859402,1762074920518,187.78006525,0.00038013,60]
[392859403,1762074921148,194.72792766,0.00038013,60]
[392859404,1762074921810,201.93286099,0.00038013,60]
[392859405,1762074922420,209.40437684,0.00038013,60]
[392859406,1762074923042,217.15233878,0.00038013,60]
[392859407,1762074923674,225.18697532,0.00038013,60]
[392859408,1762074924284,233.51889341,0.00038013,60]
[392859409,1762074925017,242.15909246,0.00038013,60]
[392859410,1762074925509,251.11897888,0.00038013,60]
[392859411,1762074927061,7503.54715566,0.00023345,2]
[392859412,1762074927082,7897.4310079,0.00023345,2]
[392859413,1762074932725,206.31,0.00032877,120]
[392859416,1762074958405,150.0,0.0002279,2]
[392859417,1762074963619,1090.73638667,0.00023344,2]
[392859418,1762074986051,602.989184,0.00013699,2]
[392859419,1762074986243,602.989184,0.00020187,2]
[392859421,1762075030129,7553.29524533,0.00023344,2]
[392859422,1762075030150,8580.0490331,0.00023344,2]
[392859423,1762075046219,449.98,0.0002342,2]
[392859424,1762075085789,150.0,0.00022763,2]
[392859425,1762075101433,819.9809669,0.00023321,2]
[392859426,1762075101454,311.95533227,0.00023321,2]
[392859427,1762075105447,151.0,0.00023328,7]
[392859428,1762075110081,166.81402635,0.00022561,2]
[392859429,1762075111787,424.57988973,0.00022475,2]
[392859431,1762075153963,1247.54654616,0.00023343,2]
[392859432,1762075158792,150.0,0.00022295,2]
[392859433,1762075159189,150.0,0.00023356,2]
[392859435,1762075162680,-177.0,0.00023421,2]
[392859436,1762075162702,-51.07955308,0.00023428,2]
[392859437,1762075164145,-229.41373974,0.00023428,2]
[392859438,1762075164167,-1.32384772,0.00023434,3]
[392859440,1762075177279,228.07955308,0.00023434,2]
[392859441,1762075177678,-277.67426449,0.00023434,3]
[392859442,1762075179767,-272.08597262,0.00023434,3]
[392859443,1762075181840,-198.95918738,0.00023434,3]
[392859444,1762075184814,-220.1793355,0.00023434,3]
[392859445,1762075202154,300.0,0.00023433,2]
[392859446,1762075207862,300.0,0.00023433,2]
[392859447,1762075211219,1200.0,0.00023433,2]
[392859448,1762075211550,181.04392802,0.00038027,60]
[392859449,1762075212708,300.0,0.00023433,2]
[392859452,1762075217226,7671.93044692,0.00023398,2]
[392859453,1762075217249,6140.52747696,0.00023398,2]
[392859454,1762075222476,3859.48252304,0.00023434,2]
[392859455,1762075222499,1140.51747696,0.00023434,2]
[392859456,1762075226727,150.0,0.00022306,2]
[392859457,1762075227118,150.0,0.00023368,2]
[392859460,1762075237859,5000.0,0.00023434,2]
[392859461,1762075238839,395.86871567,0.00023334,2]
[392859462,1762075246319,4446.11736697,0.00023434,2]
[392859469,1762075261689,158.02391736,0.00023434,2]
[392859470,1762075261712,4841.97608264,0.00023434,2]
[392859471,1762075263799,300.0,0.00023433,2]
[392859475,1762075283912,3118.55263303,0.00023434,2]
[392859476,1762075286737,1070.34986649,0.00023253,2]
[392859477,1762075295229,150.0,0.00022507,2]
[392859478,1762075302730,246.825,0.00022975,2]
[392859479,1762075302837,179.46497678,0.00022975,2]
[392859482,1762075345421,487.24980858,0.00023342,2]
[392859483,1762075350550,487.24980857,0.0002337,2]
[392859484,1762075354971,6132.9708861,0.00023398,2]
[392859485,1762075355405,487.24980857,0.00023398,2]
[392859486,1762075364464,150.0,0.00022639,2]
[392859489,1762075412022,1348.11140975,0.00023344,2]
[392859490,1762075435408,150.0,0.00022293,2]
[392859491,1762075435839,150.0,0.00023354,2]
[392859492,1762075505250,150.0,0.00022336,2]
[392859493,1762075505713,150.0,0.000234,2]
[392859494,1762075507720,307.17827843,0.00023344,2]
[392859495,1762075507743,9845.33590516,0.00023344,2]
[392859496,1762075514195,154.67409484,0.00023414,2]
[392859497,1762075514219,770.48571861,0.00023414,2]
[392859498,1762075521935,5000.0,0.00023414,2]
[392859499,1762075522918,1486.5680311,0.0002244,7]
[392859500,1762075530013,2742.95625029,0.00023414,2]
[392859503,1762075537786,1600.69012418,0.00023,2]
[392859504,1762075545838,537.60203127,0.00023,2]
[392859516,1762075571198,150.0,0.00022399,2]
[392859517,1762075578189,257.29924645,0.00023332,2]
[392859518,1762075590084,453.49376209,0.00023334,2]
[392859520,1762075621238,192.61124692,0.00022475,2]
[392859522,1762075629112,399.97193826,0.00023182,5]
[392859523,1762075642349,150.0,0.00022389,2]
[392859525,1762075672226,2623.1885134,0.00022433,2]
[392859526,1762075672707,-232.35322619,0.00023334,2]
[392859528,1762075674387,-215.53506521,0.00023334,2]
[392859529,1762075675896,232.35322619,0.00023334,2]
[392859530,1762075675935,-277.94286186,0.00023334,2]
[392859531,1762075678781,-164.77441272,0.00023334,2]
[392859533,1762075684350,4488.84404236,0.00021,5]
[392859534,1762075686888,514.64599306,0.000125,2]
[392859535,1762075686908,10000.01,0.000125,2]
[392859536,1762075686930,1047.30442407,0.000125,2]
[392859538,1762075695528,2118.64957992,0.000176,2]
[392859539,1762075698530,658.25233979,0.00023334,2]
[392859541,1762075705179,6175.80365622,0.00017,2]
[392859542,1762075705361,1706.06442648,0.00017,2]
[392859543,1762075705816,8293.94557352,0.00022,5]
[392859544,1762075705844,17646.05052682,0.00022,5]
[392859547,1762075712719,150.0,0.00022583,2]
[392859548,1762075713482,5000.0,0.00023,2]
[392859549,1762075721640,5000.0,0.00023,2]
[392859551,1762075730583,5000.0,0.00023,2]
[392859556,1762075753747,0.01,0.00023,2]
[392859557,1762075753768,4999.99,0.00023,2]
[392859558,1762075773749,300.0,0.00023,2]
[392859559,1762075775578,-289.05437649,0.0002326,2]
[392859561,1762075777296,4700.02,0.00023,2]
[392859562,1762075777317,299.98,0.00023,2]
[392859563,1762075777347,-452.04775782,0.0002326,2]
[392859564,1762075778850,-151.0,0.0002326,2]
[392859565,1762075780606,-178.24773218,0.0002326,2]
[392859566,1762075780627,-148.79308044,0.00023334,2]
[392859567,1762075784440,150.0,0.00022587,2]
[392859568,1762075784466,300.0,0.00023,2]
[392859569,1762075792749,-366.35849595,0.00023145,5]
[392859570,1762075792804,5000.0,0.00023,2]
[392859571,1762075795555,300.0,0.00023,2]
[392859572,1762075800498,4700.01,0.00023041,2]
[392859573,1762075800519,299.99,0.00023041,2]
[392859574,1762075805915,300.0,0.00023,2]
[392859575,1762075815732,1865.40485687,0.00023041,2]
[392859576,1762075816871,300.0,0.00023,2]
[392859577,1762075817011,-133.2850524,0.00023145,5]
[392859578,1762075817033,-98.00537571,0.00023239,2]
[392859579,1762075823464,736.58505254,0.00023041,2]
[392859580,1762075825139,-380.71823815,0.00023139,2]
[392859581,1762075826791,-187.75522723,0.00023139,2]
[392859582,1762075827371,300.0,0.00023,2]
[392859583,1762075828081,300.0,0.00023,2]
[392859584,1762075831503,-201.99864785,0.00023139,2]
[392859623,1762075832446,-360.42367092,0.00023139,2]
[392859625,1762075832455,-176.87805125,0.00023239,2]
[392859627,1762075832465,-479.40701855,0.00023334,2]
[392859629,1762075832478,-3014.59298145,0.00023334,2]
[392859631,1762075832487,-392.0,0.00023334,2]
[392859633,1762075832497,-123.55220534,0.00023343,2]
[392859636,1762075832508,-176.44779466,0.00023343,2]
[392859638,1762075832517,-284.04894132,0.00023343,2]
[392859643,1762075832565,-915.95105868,0.00023343,2]
[392859645,1762075832575,-1684.04894132,0.00023344,2]
[392859648,1762075832586,-2750.0,0.00023344,2]
[392859719,1762075837714,300.0,0.00023,2]
[392859720,1762075837740,-184.55838014,0.00023344,2]
[392859722,1762075838227,300.0,0.00023,2]
[392859726,1762075838512,-2149.7354676,0.00023344,2]
[392859727,1762075838524,-300.0,0.00023431,2]
[392859728,1762075838535,-300.0,0.00023431,2]
[392859729,1762075838545,-441.92901535,0.00023432,2]
[392859730,1762075838554,-500.0,0.00023432,2]
[392859731,1762075838657,-500.0,0.00023432,2]
[392859732,1762075838673,-500.0,0.00023432,2]
[392859733,1762075838683,-500.0,0.00023432,2]
[392859734,1762075838692,-582.23873007,0.00023432,2]
[392859735,1762075838705,-500.0,0.00023432,2]
[392859736,1762075838715,-500.0,0.00023432,2]
[392859737,1762075838725,-500.0,0.00023432,2]
[392859738,1762075838735,-500.0,0.00023432,2]
[392859739,1762075838745,-500.0,0.00023432,2]
[392859740,1762075838755,-581.45494216,0.00023432,2]
[392859741,1762075838766,-500.0,0.00023432,2]
[392859742,1762075838776,-500.0,0.00023432,2]
[392859743,1762075838789,-500.0,0.00023432,2]
[392859744,1762075838799,-280.0,0.00023432,2]
[392859745,1762075838809,-626.58451786,0.00023432,2]
[392859746,1762075838819,-500.0,0.00023432,2]
[392859747,1762075838829,-500.0,0.00023432,2]
[392859748,1762075838840,-500.0,0.00023432,2]
[392859749,1762075838850,-500.0,0.00023432,2]
[392859750,1762075838860,-300.0,0.00023432,2]
[392859751,1762075838872,-500.0,0.00023432,2]
[392859752,1762075838883,-500.0,0.00023432,2]
[392859753,1762075838895,-350.39071004,0.00023432,2]
[392859754,1762075838906,-500.0,0.00023432,2]
[392859755,1762075838916,-500.0,0.00023432,2]
[392859756,1762075838926,-440.42517701,0.00023432,2]
[392859757,1762075838939,-59.57482299,0.00023432,2]
[392859758,1762075838948,-467.4356236,0.00023432,2]
[392859759,1762075838959,-32.5643764,0.00023432,2]
[392859760,1762075838970,-337.14345449,0.00023432,2]
[392859761,1762075838981,-162.85654551,0.00023432,2]
[392859762,1762075838991,-1200.0,0.00023432,2]
[392859763,1762075839000,-205.02475147,0.00023433,2]
[392859764,1762075839009,-662.36882293,0.00023433,2]
[392859765,1762075839020,-282.83175995,0.00023433,2]
[392859766,1762075839039,-49054.79941712,0.00023433,2]
[392859767,1762075839049,-1074.36,0.00023434,3]
[392859768,1762075839058,-537.18,0.00023434,3]
[392859769,1762075839068,-268.59,0.00023434,3]
[392859770,1762075839078,-805.78,0.00023434,3]
[392859771,1762075839088,-2402.98,0.00023434,10]
[392859772,1762075839098,-2240.06,0.00023434,10]
[392859773,1762075839108,-160.0,0.0002344,2]
[392859774,1762075839120,-151.0,0.00023444,7]
[392859775,1762075839131,-371.030955,0.00023444,7]
[392859776,1762075839143,-210.092222,0.00023444,7]
[392859777,1762075839152,-371.030955,0.00023444,7]
[392859778,1762075839162,-371.030955,0.00023444,7]
[392859779,1762075839172,-371.030955,0.00023444,7]
[392859780,1762075839182,-151.0,0.00023444,7]
[392859781,1762075839193,-151.0,0.00023444,7]
[392859782,1762075839203,-151.0,0.00023444,7]
[392859783,1762075839213,-257.061699,0.00023444,7]
[392859784,1762075839223,-151.0,0.00023444,7]
[392859785,1762075839232,-151.0,0.00023444,7]
[392859786,1762075839242,-151.0,0.00023444,7]
[392859787,1762075839252,-151.0,0.00023444,7]
[392859788,1762075839262,-151.0,0.00023444,7]
[392859789,1762075839273,-151.0,0.00023444,7]
[392859790,1762075839283,-151.0,0.00023444,7]
[392859791,1762075839292,-151.0,0.00023444,7]
[392859792,1762075839302,-151.0,0.00023444,7]
[392859793,1762075839311,-151.0,0.00023444,7]
[392859794,1762075839321,-151.0,0.00023444,7]
[392859795,1762075839330,-151.0,0.00023444,7]
[392859796,1762075839339,-151.0,0.00023444,7]
[392859797,1762075839356,-151.0,0.00023444,7]
[392859798,1762075839375,-151.0,0.00023444,7]
[392859799,1762075839390,-151.0,0.00023444,7]
[392859800,1762075839407,-163.414995,0.00023444,7]
[392859801,1762075839423,-404.09107657,0.00023444,7]
[392859802,1762075839441,-151.0,0.00023444,7]
[392859803,1762075839456,-186.418299,0.00023444,7]
[392859804,1762075839471,-319.172367,0.00023444,7]
[392859805,1762075839486,-319.172367,0.00023444,7]
[392859806,1762075839502,-319.172367,0.00023444,7]
[392859807,1762075839514,-319.172367,0.00023444,7]
[392859808,1762075839529,-319.172367,0.00023444,7]
[392859809,1762075839546,-319.172367,0.00023444,7]
[392859810,1762075839562,-319.172367,0.00023444,7]
[392859811,1762075839581,-319.172367,0.00023444,7]
[392859812,1762075839595,-151.0,0.00023444,7]
[392859813,1762075839608,-173.610312,0.00023444,7]
[392859814,1762075839625,-151.503429,0.00023444,7]
[392859815,1762075839639,-151.0,0.00023444,7]
[392859816,1762075839654,-151.0,0.00023444,7]
[392859817,1762075839669,-151.0,0.00023444,7]
[392859818,1762075839682,-151.0,0.00023444,7]
[392859819,1762075839697,-151.0,0.00023444,7]
[392859820,1762075839712,-151.0,0.00023444,7]
[392859821,1762075839726,-202.874426,0.00023444,7]
[392859822,1762075839739,-151.0,0.00023444,7]
[392859823,1762075839753,-151.0,0.00023444,7]
[392859824,1762075839768,-151.0,0.00023444,7]
[392859825,1762075839782,-151.0,0.00023444,7]
[392859826,1762075839796,-151.0,0.00023444,7]
[392859827,1762075839810,-151.0,0.00023444,7]
[392859828,1762075839824,-151.0,0.00023444,7]
[392859829,1762075839837,-156.346473,0.00023444,7]
[392859830,1762075839851,-151.0,0.00023444,7]
[392859831,1762075839864,-151.0,0.00023444,7]
[392859832,1762075839881,-151.0,0.00023444,7]
[392859833,1762075839895,-151.0,0.00023444,7]
[392859834,1762075839909,-151.0,0.00023444,7]
[392859835,1762075839922,-161.372397,0.00023444,7]
[392859836,1762075839935,-151.0,0.00023444,7]
[392859837,1762075839949,-151.0,0.00023444,7]
[392859838,1762075839962,-151.0,0.00023444,7]
[392859839,1762075839976,-243.436253,0.00023444,7]
[392859840,1762075839990,-165.620557,0.00023444,7]
[392859841,1762075840004,-165.620557,0.00023444,7]
[392859842,1762075840018,-321.305752,0.00023444,2]
[392859843,1762075840031,-321.305752,0.00023444,2]
[392859844,1762075840044,-165.620557,0.00023444,7]
[392859845,1762075840058,-523.676627,0.00023444,7]
[392859846,1762075840072,-165.620557,0.00023444,7]
[392859847,1762075840086,-523.676627,0.00023444,7]
[392859848,1762075840100,-523.676627,0.00023444,7]
[392859849,1762075840115,-523.676627,0.00023444,7]
[392859851,1762075840133,-151.0,0.00023444,7]
[392859852,1762075840147,-151.0,0.00023444,7]
[392859853,1762075840161,-523.676627,0.00023444,7]
[392859854,1762075840177,-321.305752,0.00023444,2]
[392859855,1762075840190,-523.676627,0.00023444,7]
[392859856,1762075840204,-321.305752,0.00023444,2]
[392859857,1762075840218,-165.620557,0.00023444,7]
[392859858,1762075840232,-151.0,0.00023444,7]
[392859860,1762075840246,-165.620557,0.00023444,7]
[392859861,1762075840259,-151.0,0.00023444,7]
[392859862,1762075840270,-523.676627,0.00023444,7]
[392859863,1762075840280,-321.305752,0.00023444,2]
[392859864,1762075840291,-523.676627,0.00023444,7]
[392859865,1762075840300,-321.305752,0.00023444,2]
[392859868,1762075840463,-165.620557,0.00023444,7]
[392859869,1762075840485,-165.620557,0.00023444,7]
[392859870,1762075840495,-321.305752,0.00023444,2]
[392859871,1762075840504,-321.305752,0.00023444,2]
[392859872,1762075840512,-151.0,0.00023444,7]
[392859873,1762075840522,-151.0,0.00023444,7]
[392859875,1762075840531,-289.923748,0.00023444,7]
[392859876,1762075840540,-151.0,0.00023444,7]
[392859877,1762075840550,-151.0,0.00023444,7]
[392859878,1762075840559,-335.193251,0.00023444,7]
[392859879,1762075840569,-335.193251,0.00023444,7]
[392859880,1762075840578,-335.193251,0.00023444,7]
[392859881,1762075840588,-335.193251,0.00023444,7]
[392859882,1762075840597,-335.193251,0.00023444,7]
[392859883,1762075840606,-335.193251,0.00023444,7]
[392859884,1762075840615,-335.193251,0.00023444,7]
[392859885,1762075840624,-335.193251,0.00023444,7]
[392859886,1762075840633,-1516.391791,0.00023444,7]
[392859887,1762075840642,-1516.391791,0.00023444,7]
[392859888,1762075840651,-151.0,0.00023444,7]
[392859889,1762075840661,-1516.391791,0.00023444,7]
[392859890,1762075840670,-151.0,0.00023444,7]
[392859891,1762075840679,-1516.391791,0.00023444,7]
[392859892,1762075840688,-151.0,0.00023444,7]
[392859893,1762075840698,-151.0,0.00023444,7]
[392859894,1762075840708,-1516.391791,0.00023444,7]
[392859895,1762075840717,-1516.391791,0.00023444,7]
[392859896,1762075840728,-151.0,0.00023444,7]
[392859897,1762075840738,-1516.391791,0.00023444,7]
[392859898,1762075840747,-151.0,0.00023444,7]
[392859899,1762075840757,-1516.391791,0.00023444,7]
[392859900,1762075840766,-253.156295,0.00023444,7]
[392859901,1762075840775,-1516.391791,0.00023444,7]
[392859902,1762075840784,-1516.391791,0.00023444,7]
[392859903,1762075840794,-1516.391791,0.00023444,7]
[392859904,1762075840803,-1516.391791,0.00023444,7]
[392859905,1762075840813,-1516.391791,0.00023444,7]
[392859906,1762075840822,-1516.391791,0.00023444,7]
[392859907,1762075840831,-1516.391791,0.00023444,7]
[392859908,1762075840841,-1516.391791,0.00023444,7]
[392859909,1762075840851,-151.0,0.00023444,7]
[392859910,1762075840859,-157.42855,0.00023444,7]
[392859911,1762075840868,-151.0,0.00023444,7]
[392859912,1762075840878,-151.0,0.00023444,7]
[392859913,1762075840888,-151.0,0.00023444,7]
[392859914,1762075840898,-151.0,0.00023444,7]
[392859915,1762075840906,-151.0,0.00023444,7]
[392859916,1762075840915,-151.0,0.00023444,7]
[392859917,1762075840925,-151.0,0.00023444,7]
[392859918,1762075840934,-151.0,0.00023444,7]
[392859919,1762075840944,-151.0,0.00023444,7]
[392859920,1762075840953,-151.0,0.00023444,7]
[392859921,1762075840964,-151.0,0.00023444,7]
[392859922,1762075840973,-151.0,0.00023444,7]
[392859923,1762075840983,-151.0,0.00023444,7]
[392859924,1762075840992,-151.0,0.00023444,7]
[392859925,1762075841002,-235.330151,0.00023444,7]
[392859926,1762075841011,-151.0,0.00023444,7]
[392859927,1762075841021,-151.0,0.00023444,7]
[392859928,1762075841030,-151.0,0.00023444,7]
[392859929,1762075841039,-151.0,0.00023444,7]
[392859930,1762075841049,-151.0,0.00023444,7]
[392859931,1762075841059,-151.0,0.00023444,7]
[392859932,1762075841069,-151.0,0.00023444,7]
[392859933,1762075841078,-151.0,0.00023444,7]
[392859934,1762075841087,-151.0,0.00023444,7]
[392859935,1762075841097,-151.0,0.00023444,7]
[392859936,1762075841106,-151.0,0.00023444,7]
[392859937,1762075841115,-151.0,0.00023444,7]
[392859938,1762075841128,-151.0,0.00023444,7]
[392859939,1762075841138,-151.0,0.00023444,7]
[392859940,1762075841148,-151.0,0.00023444,7]
[392859941,1762075841157,-151.0,0.00023444,7]
[392859942,1762075841167,-151.0,0.00023444,7]
[392859943,1762075841177,-151.0,0.00023444,7]
[392859944,1762075841187,-151.0,0.00023444,7]
[392859945,1762075841197,-151.0,0.00023444,7]
[392859946,1762075841206,-151.0,0.00023444,7]
[392859947,1762075841215,-151.0,0.00023444,7]
[392859948,1762075841225,-151.0,0.00023444,7]
[392859949,1762075841234,-151.0,0.00023444,7]
[392859950,1762075841243,-151.0,0.00023444,7]
[392859951,1762075841253,-151.0,0.00023444,7]
[392859952,1762075841262,-151.0,0.00023444,7]
[392859953,1762075841271,-151.0,0.00023444,7]
[392859954,1762075841280,-151.0,0.00023444,7]
[392859955,1762075841291,-151.0,0.00023444,7]
[392859956,1762075841303,-151.0,0.00023444,7]
[392859957,1762075841313,-206.353756,0.00023444,7]
[392859958,1762075841323,-151.0,0.00023444,7]
[392859959,1762075841332,-151.0,0.00023444,7]
[392859960,1762075841342,-151.0,0.00023444,7]
[392859961,1762075841352,-151.0,0.00023444,7]
[392859962,1762075841362,-151.0,0.00023444,7]
[392859963,1762075841372,-151.0,0.00023444,7]
[392859964,1762075841381,-151.0,0.00023444,7]
[392859965,1762075841392,-155.848232,0.00023444,7]
[392859966,1762075841401,-151.0,0.00023444,7]
[392859967,1762075841411,-151.0,0.00023444,7]
[392859968,1762075841420,-151.0,0.00023444,7]
[392859969,1762075841429,-151.0,0.00023444,7]
[392859970,1762075841439,-151.0,0.00023444,7]
[392859971,1762075841448,-155.760987,0.00023444,7]
[392859972,1762075841457,-151.0,0.00023444,7]
[392859973,1762075841466,-151.0,0.00023444,7]
[392859974,1762075841475,-151.0,0.00023444,7]
[392859975,1762075841484,-151.0,0.00023444,7]
[392859976,1762075841494,-151.0,0.00023444,7]
[392859977,1762075841503,-151.0,0.00023444,7]
[392859978,1762075841513,-171.814067,0.00023444,7]
[392859979,1762075841522,-151.822312,0.00023444,2]
[392859980,1762075841532,-151.0,0.00023444,7]
[392859981,1762075841541,-151.0,0.00023444,7]
[392859982,1762075841550,-160.417752,0.00023444,7]
[392859983,1762075841559,-159.384878,0.00023444,7]
[392859984,1762075841568,-151.0,0.00023444,7]
[392859985,1762075841577,-151.0,0.00023444,7]
[392859986,1762075841586,-151.0,0.00023444,7]
[392859987,1762075841596,-151.0,0.00023444,7]
[392859988,1762075841604,-227.666164,0.00023444,7]
[392859989,1762075841614,-151.0,0.00023444,7]
[392859990,1762075841622,-151.0,0.00023444,7]
[392859991,1762075841632,-208.454816,0.00023444,7]
[392859992,1762075841642,-151.0,0.00023444,7]
[392859993,1762075841652,-233.824543,0.00023444,7]
[392859994,1762075841661,-500.0,0.00023444,7]
[392859995,1762075841669,-159.69643209,0.00023444,7]
[392859996,1762075841679,-151.0,0.00023444,7]
[392859997,1762075841688,-151.0,0.00023444,7]
[392859998,1762075841697,-151.0,0.00023444,7]
[392859999,1762075841706,-151.0,0.00023444,7]